bitfinex/quotes_SOLUSD_20211001
["timestamp","ask_amount","ask_price","bid_price","bid_amount"]
[1633099667327,16.6544,150.43,150.18,1.83053934]
[1633099667527,16.6544,150.43,150.19,1.82224845]
[1633099667728,16.6544,150.43,150.2,28.95098448]
[1633099667926,16.6544,150.43,150.21,0.02088]
[1633099668326,454.4669246,150.39,150.21,76.86618]
[1633099668528,16.6544,150.43,150.23,24.34006952]
[1633099668727,16.6544,150.43,150.23,48.07594952]
[1633099669328,16.6544,150.43,150.24,0.02088]
[1633099669728,16.6544,150.43,150.23,24.34006952]
[1633099670132,18.58009303,150.43,150.23,24.34006952]
[1633099670327,0.02088,150.44,150.23,75.43936243]
[1633099670528,354.68076533,150.47,150.24,1.83375861]
[1633099670727,354.68076533,150.47,150.28,0.02088]
[1633099670926,16.6475,150.49,150.29,22.25902499]
[1633099671127,18.57237571,150.49,150.3,0.02088]
[1633099671331,1.92527629,150.46,150.3,0.02088]
[1633099671728,1.9256153,150.43,150.25,0.02088]
[1633099671926,1.9256153,150.43,150.21,0.02088]
[1633099672126,17.01730763,150.43,150.2,0.02088]
[1633099672327,15.09169233,150.43,150.21,1.86939046]
[1633099672527,15.09169233,150.43,150.22,0.02088]
[1633099672730,15.09169233,150.43,150.22,27.62188668]
[1633099672927,15.09169233,150.43,150.23,0.02088]
[1633099673326,340.71858676,150.42,150.23,0.02088]
[1633099676328,340.71858676,150.42,150.22,27.62188668]
[1633099678328,15.09169233,150.43,150.22,27.62188668]
[1633099678532,15.09169233,150.43,150.22,29.52665766]
[1633099678728,15.09169233,150.43,150.22,27.62188668]
[1633099680931,15.09169233,150.43,150.22,45.59914656]
[1633099681332,15.09169233,150.43,150.22,47.5182487]
[1633099681532,0.02088,150.44,150.22,47.5182487]
[1633099681735,0.02088,150.46,150.22,45.59914656]
[1633099681933,1.94306583,150.46,150.22,45.59914656]
[1633099682136,0.02088,150.45,150.22,45.59914656]
[1633099682334,0.02088,150.46,150.22,47.51591646]
[1633099682734,493.33142712,150.47,150.23,0.02088]
[1633099683636,491.40812173,150.47,150.23,0.02088]
[1633099683836,491.40812173,150.47,150.23,17.99813988]
[1633099684036,491.40812173,150.47,150.24,0.02088]
[1633099684436,491.40812173,150.47,150.25,0.02088]
[1633099684636,491.40812173,150.47,150.25,29.5746083]
[1633099684837,491.40812173,150.47,150.26,0.02088]
[1633099685036,476.3164294,150.47,150.28,0.02088]
[1633099685438,476.3164294,150.47,150.29,17.97725988]
[1633099685637,15.09169233,150.52,150.3,0.02088]
[1633099685842,72.8782,150.51,150.3,0.02088]
[1633099686239,72.8782,150.51,150.31,23.93931508]
[1633099686439,72.8782,150.51,150.31,23.96019508]
[1633099687639,0.02088,150.5,150.31,23.93931508]
[1633099687842,0.02088,150.5,150.31,72.75253595]
[1633099688039,72.8782,150.51,150.32,0.02088]
[1633099688238,72.8782,150.51,150.32,20.32888]
[1633099688443,72.8782,150.51,150.33,17.94265677]
[1633099688641,72.8782,150.51,150.34,29.26397838]
[1633099689040,72.8782,150.51,150.35,17.94265677]
[1633099689242,471.43677254,150.52,150.36,0.02088]
[1633099689442,471.43677254,150.52,150.36,18.87488]
[1633099689641,471.43677254,150.52,150.37,27.01964885]
[1633099692745,471.43677254,150.52,150.37,47.69564885]
[1633099693945,77.3937,150.56,150.37,47.69564885]
[1633099694347,15.12629544,150.57,150.37,47.69564885]
[1633099694547,424.64135231,150.58,150.37,131.76830562]
[1633099694748,422.70255938,150.58,150.38,0.02088]
[1633099695948,17.06190965,150.62,150.38,17.96353677]
[1633099696149,15.14759304,150.62,150.39,0.02088]
[1633099696566,15.14759304,150.62,150.4,23.84801964]
[1633099696750,15.14759304,150.62,150.4,23.86889964]
[1633099696950,15.14759304,150.62,150.4,41.81155641]
[1633099697151,15.14759304,150.62,150.41,66.13]
[1633099697352,15.14759304,150.62,150.41,80.516]
[1633099697551,15.14759304,150.62,150.41,98.45865677]
[1633099697951,15.12629544,150.62,150.42,0.02088]
[1633099699151,494.88985374,150.63,150.43,25.08160492]
[1633099699361,494.88985374,150.63,150.43,25.10248492]
[1633099699568,494.88985374,150.63,150.43,110.0153842]
[1633099699752,494.88985374,150.63,150.43,43.8853842]
[1633099700152,494.88985374,150.63,150.43,43.8645042]
[1633099700352,494.88985374,150.63,150.43,43.8853842]
[1633099700953,494.88985374,150.63,150.43,64.1113842]
[1633099701755,494.88985374,150.63,150.43,130.2413842]
[1633099702153,151.3515,150.64,150.43,130.2413842]
[1633099702954,151.3515,150.64,150.43,64.1113842]
[1633099703259,151.3515,150.64,150.43,45.32848492]
[1633099703460,151.3515,150.64,150.43,25.10248492]
[1633099703657,151.3515,150.64,150.43,41.72148492]
[1633099705167,151.3515,150.64,150.44,30.8705641]
[1633099706484,151.3515,150.64,150.44,97.0005641]
[1633099706682,151.3515,150.64,150.44,30.8705641]
[1633099708283,151.3515,150.64,150.44,97.0005641]
[1633099708880,151.3515,150.64,150.44,30.8705641]
[1633099709485,0.0212976,150.63,150.43,25.08160492]
[1633099710480,0.0212976,150.63,150.43,55.95216902]
[1633099710882,0.0212976,150.63,150.43,25.08160492]
[1633099711285,378.58622826,150.62,150.43,25.08160492]
[1633099712483,0.0212976,150.61,150.43,25.08160492]
[1633099713884,104.0,150.6,150.39,0.02088]
[1633099714085,0.0212976,150.57,150.34,1.86163641]
[1633099714285,0.0212976,150.57,150.31,1.91238327]
[1633099714487,33.39542868,150.57,150.31,0.02088]
[1633099714686,1.94482907,150.56,150.31,1.92522659]
[1633099714886,0.0212976,150.55,150.32,26.56584535]
[1633099715285,1.94486946,150.55,150.32,26.56584535]
[1633099715486,543.2162223,150.52,150.32,26.56584535]
[1633099715684,0.0212976,150.51,150.32,26.56584535]
[1633099716886,79.7852976,150.51,150.32,26.56584535]
[1633099717088,0.0212976,150.5,150.32,26.56584535]
[1633099717690,1.94546283,150.5,150.32,26.56584535]
[1633099717888,0.0212976,150.49,150.32,26.56584535]
[1633099718088,0.0212976,150.5,150.32,26.56584535]
[1633099718889,0.0212976,150.5,150.26,1.85074972]
[1633099719089,31.47224373,150.5,150.26,1.85074972]
[1633099719289,0.0212976,150.49,150.24,1.89703535]
[1633099719693,0.0212976,150.49,150.25,1.87287375]
[1633099719891,0.0212976,150.49,150.26,29.33196198]
[1633099720088,74.7550976,150.5,150.26,31.19432684]
[1633099720289,0.0212976,150.49,150.26,31.19432684]
[1633099720490,0.0212976,150.49,150.26,50.38832684]
[1633099720691,0.0212976,150.49,150.26,116.51832684]
[1633099720890,0.0212976,150.49,150.27,1.85366089]
[1633099721989,0.0212976,150.49,150.26,50.38388256]
[1633099722189,0.0212976,150.49,150.26,48.52596198]
[1633099722589,0.0212976,150.49,150.26,50.38533021]
[1633099722790,0.0212976,150.49,150.26,48.52596198]
[1633099722990,0.0212976,150.49,150.26,29.33196198]
[1633099724194,31.47224373,150.49,150.26,29.33196198]
[1633099724394,0.0212976,150.47,150.26,29.33196198]
[1633099724596,0.0212976,150.43,150.26,29.33196198]
[1633099725001,0.0212976,150.46,150.26,29.33196198]
[1633099725796,31.47224373,150.46,150.26,29.33196198]
[1633099725994,0.0212976,150.45,150.26,29.33196198]
[1633099726396,383.9660586,150.44,150.26,29.33196198]
[1633099726594,0.0212976,150.43,150.26,29.33196198]
[1633099727196,76.3051976,150.43,150.26,29.33196198]
[1633099727395,0.0212976,150.42,150.26,29.33196198]
[1633099729998,154.2828,150.43,150.26,29.33196198]
[1633099730201,154.3040976,150.43,150.26,29.33196198]
[1633099731201,0.0212976,150.42,150.26,29.33196198]
[1633099732406,0.0212976,150.42,150.18,2.13]
[1633099732601,18.1222976,150.42,150.17,0.02088]
[1633099732806,0.0212976,150.41,150.16,0.02088]
[1633099733004,154.2828,150.43,150.15,78.3428]
[1633099733005,0.0212976,150.4,150.15,78.3428]
[1633099733403,31.47224373,150.4,150.16,25.20445249]
[1633099733603,0.0212976,150.39,150.16,25.20445249]
[1633099735003,31.47224373,150.39,150.16,25.20445249]
[1633099735203,0.0212976,150.38,150.16,25.20445249]
[1633099736006,0.0212976,150.38,150.16,25.22533249]
[1633099736207,0.0212976,150.42,150.16,51.56981659]
[1633099736404,0.0212976,150.42,150.17,66.13]
[1633099736605,0.0212976,150.42,150.19,22.35973395]
[1633099736805,76.2839,150.43,150.2,2.15088]
[1633099737005,76.2839,150.43,150.21,0.02088]
[1633099737205,76.2839,150.43,150.23,23.46922358]
[1633099737408,76.2839,150.43,150.24,0.02088]
[1633099737604,76.2839,150.43,150.24,23.32888]
[1633099737805,0.0212976,150.46,150.24,42.51449859]
[1633099738008,0.0212976,150.54,150.25,87.46649859]
[1633099738207,0.0212976,150.54,150.26,21.37923761]
[1633099738407,0.0212976,150.54,150.27,2.15088]
[1633099738607,0.0212976,150.54,150.27,87.46649859]
[1633099738806,76.6023,150.56,150.3,1.92165604]
[1633099738807,0.0212976,150.55,150.3,1.92165604]
[1633099739007,76.2541,150.57,150.33,1.92124634]
[1633099739207,76.2753976,150.57,150.35,21.94899705]
[1633099739407,76.2753976,150.57,150.36,68.26]
[1633099739607,1.92104023,150.66,150.37,0.02088]
[1633099739608,0.0212976,150.6,150.37,0.02088]
[1633099739807,152.3412,150.67,150.37,0.02088]
[1633099739808,0.0212976,150.64,150.39,27.18118198]
[1633099740007,0.0212976,150.64,150.4,66.13]
[1633099740310,0.0212976,150.66,150.41,0.02088]
[1633099740510,0.0212976,150.66,150.43,24.05891026]
[1633099740707,0.0212976,150.66,150.43,47.74191026]
[1633099741107,1.94243577,150.66,150.44,2.26]
[1633099741308,0.0212976,150.65,150.44,2.26]
[1633099741507,0.0212976,150.65,150.46,23.31368383]
[1633099741908,0.0212976,150.65,150.46,45.09280242]
[1633099742509,1.94256906,150.65,150.46,45.09280242]
[1633099742710,37.36623046,150.41,150.34,2.26]
[1633099742910,37.36623046,150.41,150.28,2.26]
[1633099743113,37.36623046,150.41,150.31,2.26]
[1633099743310,1.68,150.4,150.25,2.26]
[1633099743709,1.7221776,150.4,150.24,24.60714324]
[1633099743910,24.19216766,150.39,150.24,24.60714324]
[1633099744109,0.0421776,150.37,150.24,24.60714324]
[1633099744309,1.68,150.36,150.24,24.60714324]
[1633099744510,1.7221776,150.36,150.24,24.60714324]
[1633099744910,1.68,150.36,150.24,24.60714324]
[1633099748318,1.68,150.36,150.24,90.73714324]
[1633099749713,1.68,150.36,150.24,106.30114324]
[1633099749916,1.68,150.36,150.24,157.76314324]
[1633099750114,0.0001,150.36,150.24,160.02314324]
[1633099750714,39.04623046,150.41,150.24,160.02314324]
[1633099750917,39.04623046,150.41,150.24,174.83186701]
[1633099751317,39.04623046,150.41,150.24,200.82548002]
[1633099753917,37.36623046,150.41,150.24,198.56548002]
[1633099754115,25.06193046,150.41,150.24,198.56548002]
[1633099755119,25.06193046,150.41,150.24,200.48791751]
[1633099755317,3.046e-05,150.41,150.25,104.0]
[1633099755517,3.046e-05,150.41,150.26,119.852]
[1633099755718,3.046e-05,150.41,150.27,30.13296736]
[1633099755917,3.046e-05,150.41,150.28,53.722]
[1633099756123,3.046e-05,150.41,150.28,69.653]
[1633099756317,3.046e-05,150.41,150.29,66.13]
[1633099756518,3.046e-05,150.41,150.3,22.21943282]
[1633099758020,3.046e-05,150.41,150.3,88.34943282]
[1633099763124,3.046e-05,150.41,150.3,116.04295396]
[1633099764924,3.046e-05,150.41,150.31,2.26]
[1633099765324,3.046e-05,150.41,150.31,31.58078563]
[1633099765524,3.046e-05,150.41,150.32,66.13]
[1633099765725,3.046e-05,150.41,150.33,25.63491219]
[1633099768425,3.046e-05,150.41,150.33,91.76491219]
[1633099769626,3.046e-05,150.41,150.33,94.02491219]
[1633099771026,3.046e-05,150.41,150.33,27.89491219]
[1633099771626,3.046e-05,150.41,150.33,25.63491219]
[1633099771827,3.046e-05,150.41,150.31,451.00401482]
[1633099771828,100.00003046,150.41,150.31,451.00401482]
[1633099772427,0.0421776,150.4,150.31,451.00401482]
[1633099772827,0.0421776,150.4,150.32,28.00580666]
[1633099774533,2.3021776,150.4,150.32,28.00580666]
[1633099775134,0.0421776,150.39,150.32,28.00580666]
[1633099775333,2.26,150.38,150.32,28.00580666]
[1633099775532,0.0421776,150.37,150.32,28.00580666]
[1633099775933,0.0421776,150.37,150.26,574.24913316]
[1633099776332,0.0421776,150.37,150.26,29.24784118]
[1633099776934,0.0421776,150.37,150.27,29.6306601]
[1633099778237,2.26,150.38,150.27,29.6306601]
[1633099778238,101.92595399,150.41,150.39,97.6978224]
[1633099778436,101.94683399,150.41,150.39,97.6978224]
[1633099778835,1.92616397,150.4,150.39,97.6978224]
[1633099779436,75.2190776,150.39,150.21,359.44236654]
[1633099779638,18.57633234,150.37,150.22,0.02088]
[1633099779835,18.57633234,150.37,150.19,2.26]
[1633099780035,18.57633234,150.37,150.2,24.65936278]
[1633099781038,1.92660107,150.34,150.2,24.65936278]
[1633099781242,1.92686226,150.32,150.2,24.65936278]
[1633099781639,0.02088,150.33,150.2,24.65936278]
[1633099782836,1.92578841,150.35,150.2,24.65936278]
[1633099782837,0.02088,150.34,150.2,24.65936278]
[1633099783836,0.02088,150.35,150.2,24.65936278]
[1633099785036,0.02088,150.37,150.2,45.97836278]
[1633099785235,42.27,150.4,150.2,112.10836278]
[1633099785437,42.27,150.4,150.2,131.46914863]
[1633099786035,100.00003046,150.41,150.21,2.26]
[1633099786237,100.00003046,150.41,150.22,0.02088]
[1633099786439,100.00003046,150.41,150.22,21.64166585]
[1633099786637,100.00003046,150.41,150.23,46.00105156]
[1633099786840,100.00003046,150.41,150.24,68.41088]
[1633099787039,100.00003046,150.41,150.25,51.48288]
[1633099787237,100.00003046,150.41,150.26,97.56283542]
[1633099787438,100.00003046,150.41,150.27,0.02088]
[1633099787640,100.00003046,150.41,150.28,2.26]
[1633099787840,100.00003046,150.41,150.29,22.5428829]
[1633099789041,0.02088,150.45,150.41,3.046e-05]
[1633099789245,0.02088,150.48,150.41,3.046e-05]
[1633099789549,0.02088,150.51,150.41,3.046e-05]
[1633099789740,1.92309595,150.53,150.41,3.046e-05]
[1633099789741,0.02088,150.52,150.41,3.046e-05]
[1633099790142,1.94387244,150.54,150.41,3.046e-05]
[1633099791140,1.92298491,150.53,150.41,3.046e-05]
[1633099792143,1.92313381,150.52,150.41,3.046e-05]
[1633099792540,1.92308445,150.53,150.41,3.046e-05]
[1633099792940,1.94379159,150.54,150.41,3.046e-05]
[1633099793146,1.9433447,150.58,150.41,3.046e-05]
[1633099793342,0.02088,150.58,150.41,3.046e-05]
[1633099793743,0.02088,150.58,150.41,22.9714225]
[1633099794141,1.94325744,150.58,150.41,22.9714225]
[1633099794744,0.02088,150.57,150.41,22.9714225]
[1633099795343,0.02088,150.58,150.41,22.9714225]
[1633099795942,1.94311106,150.58,150.41,22.9714225]
[1633099796146,0.02088,150.57,150.41,22.9714225]
[1633099796543,0.02088,150.58,150.41,22.9714225]
[1633099797945,1.94309131,150.59,150.41,22.9714225]
[1633099798146,0.02088,150.59,150.41,22.9714225]
[1633099799850,0.02088,150.59,150.41,41.3104225]
[1633099800247,0.02088,150.59,150.41,74.19681924]
[1633099800648,0.02088,150.6,150.41,140.32681924]
[1633099801448,498.32408825,150.61,150.41,140.34769924]
[1633099801848,496.40236785,150.61,150.41,140.34769924]
[1633099802648,496.40236785,150.61,150.42,0.02088]
[1633099802847,1.92130839,150.63,150.42,0.02088]
[1633099803048,1.92131039,150.62,150.42,0.02088]
[1633099803651,1.92123321,150.63,150.42,0.02088]
[1633099804050,93.13671231,150.64,150.42,32.90727674]
[1633099804250,93.13671231,150.64,150.43,0.02088]
[1633099804451,1.92114571,150.63,150.43,0.02088]
[1633099804650,93.13658131,150.64,150.43,0.02088]
[1633099805853,75.9724,150.64,150.43,0.02088]
[1633099806052,75.4674,150.65,150.43,20.90102696]
[1633099806252,75.4674,150.65,150.44,93.75192848]
[1633099806652,75.4674,150.65,150.45,2.26]
[1633099806851,75.4674,150.65,150.46,0.02088]
[1633099807855,75.4674,150.65,150.46,18.64102696]
[1633099808053,75.4674,150.65,150.47,92.74395969]
[1633099808452,75.4674,150.65,150.47,95.00395969]
[1633099809654,75.4674,150.65,150.47,129.11813421]
[1633099810055,75.4674,150.65,150.47,147.74013421]
[1633099810259,75.4674,150.65,150.47,166.36028117]
[1633099810455,75.4674,150.65,150.48,0.02088]
[1633099810655,75.4674,150.65,150.49,2.26]
[1633099810855,75.4674,150.65,150.5,27.64332878]
[1633099811055,77.7386,150.7,150.51,66.13]
[1633099811358,337.80745853,150.74,150.65,75.46736954]
[1633099811558,335.8882752,150.74,150.66,21.81057319]
[1633099811757,0.09088,150.76,150.66,21.81057319]
[1633099811957,0.07,150.76,150.66,21.81057319]
[1633099813556,0.07,150.76,150.66,42.03396625]
[1633099813757,0.07,150.76,150.66,73.51657844]
[1633099813958,0.07,150.76,150.66,139.64657844]
[1633099814157,0.07,150.76,150.66,191.10857844]
[1633099814361,0.02088,150.87,150.67,61.26]
[1633099814560,716.02992595,150.91,150.68,66.13]
[1633099814759,0.02088,150.9,150.69,24.7381234]
[1633099814960,42.27,150.92,150.7,0.02088]
[1633099815362,42.27,150.92,150.7,53.88900313]
[1633099815564,42.27,150.92,150.71,53.88900313]
[1633099815772,42.27,150.92,150.72,26.82193011]
[1633099815961,42.27,150.92,150.72,80.69005324]
[1633099816161,42.27,150.92,150.73,19.75394861]
[1633099816362,42.27,150.92,150.73,73.06812313]
[1633099818563,42.27,150.92,150.73,38.95394861]
[1633099818765,42.27,150.92,150.72,26.82193011]
[1633099818963,18.58855471,150.91,150.72,26.82193011]
[1633099819163,60.85855471,150.91,150.72,26.82193011]
[1633099819564,18.60943471,150.9,150.72,26.82193011]
[1633099819764,0.02088,150.89,150.72,26.82193011]
[1633099820367,18.60943471,150.89,150.72,26.82193011]
[1633099824168,0.02088,150.89,150.72,26.82193011]
[1633099824367,356.52359538,150.9,150.72,26.82193011]
[1633099825570,356.52359538,150.9,150.73,0.02088]
[1633099825769,356.52359538,150.9,150.73,19.73088]
[1633099826370,356.52359538,150.9,150.72,26.82193011]
[1633099827370,0.02088,150.89,150.72,26.82193011]
[1633099828171,356.52359538,150.9,150.72,26.82193011]
[1633099828372,42.27,150.91,150.72,26.82193011]
[1633099829374,0.02088,150.9,150.72,26.82193011]
[1633099831977,0.02088,150.89,150.66,2.26]
[1633099832378,0.02088,150.89,150.67,29.49050785]
[1633099832576,0.02088,150.89,150.67,50.61250785]
[1633099832980,0.02088,150.89,150.68,28.15586061]
[1633099835578,1.93803704,150.89,150.68,28.15586061]
[1633099835778,33.62307328,150.9,150.68,28.15586061]
[1633099835779,1.93865821,150.88,150.68,28.15586061]
[1633099835980,1.93879806,150.87,150.68,28.15586061]
[1633099836179,1.91801234,150.86,150.68,28.15586061]
[1633099836783,1.91866572,150.84,150.65,75.48824954]
[1633099836979,44.18895857,150.82,150.65,75.46736954]
[1633099837180,1.91932574,150.79,150.65,75.46736954]
[1633099837380,22.59732574,150.79,150.65,75.46736954]
[1633099837579,1.91995913,150.77,150.65,75.46736954]
[1633099837779,42.29088,150.76,150.65,75.46736954]
[1633099837979,0.02088,150.75,150.65,75.46736954]
[1633099838179,18.83452884,150.77,150.65,75.46736954]
[1633099838982,18.83452884,150.77,150.65,95.82936954]
[1633099839179,18.83452884,150.77,150.66,22.21300676]
[1633099839782,20.75542248,150.77,150.66,22.21300676]
[1633099840581,20.75542248,150.77,150.66,39.58100676]
[1633099841683,1.92115233,150.76,150.66,39.58100676]
[1633099842081,1.92102039,150.77,150.66,39.58100676]
[1633099843884,1.92102039,150.77,150.66,22.21300676]
[1633099845687,1.92096264,150.76,150.66,22.21300676]
[1633099845887,524.52532196,150.85,150.67,104.0]
[1633099846092,382.78180066,150.85,150.68,68.39]
[1633099846287,149.55548432,150.94,150.71,0.0212976]
[1633099846688,149.55548432,150.94,150.72,38.32579723]
[1633099846885,149.55548432,150.94,150.73,19.37476009]
[1633099847086,149.55548432,150.94,150.74,0.0212976]
[1633099847485,69.89028432,150.94,150.74,0.0212976]
[1633099847689,69.89028432,150.94,150.74,21.8462976]
[1633099847885,69.89028432,150.94,150.75,0.0212976]
[1633099848688,42.27,150.92,150.75,0.0212976]
[1633099848887,29.95898012,150.91,150.73,19.37476009]
[1633099850489,29.95898012,150.91,150.73,19.35346249]
[1633099852390,22.44268371,150.87,150.73,19.35346249]
[1633099857095,22.44268371,150.87,150.7,77.2629976]
[1633099857296,22.44268371,150.87,150.7,77.2417]
[1633099857494,22.44268371,150.87,150.66,109.4727976]
[1633099857696,22.44268371,150.87,150.66,0.0212976]
[1633099857895,22.44268371,150.87,150.65,0.0212976]
[1633099858098,22.44268371,150.87,150.65,25.10504652]
[1633099858099,16.5965,150.85,150.65,25.10504652]
[1633099858298,24.41082784,150.84,150.66,0.0212976]
[1633099858498,24.41082784,150.84,150.66,77.6289976]
[1633099860112,369.17296957,150.95,150.85,16.5965]
[1633099860511,0.519881,150.96,150.85,16.5965]
[1633099860713,0.519881,150.96,150.86,0.0412976]
[1633099862115,26.17424113,150.95,150.85,16.5965]
[1633099862516,0.519881,150.96,150.85,16.5965]
[1633099863515,25.96228376,150.95,150.85,16.5965]
[1633099864115,0.519881,150.96,150.85,16.5965]
[1633099864316,2.26,150.94,150.85,16.5965]
[1633099866816,2.26,150.94,150.86,0.0412976]
[1633099867019,2.26,150.94,150.86,14.8322976]
[1633099867219,2.26,150.94,150.87,22.80187641]
[1633099868918,2.26,150.94,150.87,40.84187641]
[1633099871118,2.26,150.94,150.87,22.80187641]
[1633099874324,2.26,150.94,150.86,0.0412976]
[1633099874728,2.26,150.94,150.85,16.5965]
[1633099875925,2.26,150.94,150.86,0.0412976]
[1633099879933,0.10808364,151.06,151.01,16.5965]
[1633099880131,0.10808364,151.06,151.01,8.82498633]
[1633099880529,0.10808364,151.06,151.02,0.0412976]
[1633099881730,0.10808364,151.06,151.01,8.82498633]
[1633099882929,0.10808364,151.06,151.02,0.0412976]
[1633099887533,0.10808364,151.06,151.01,8.82498633]
[1633099898947,2.26,151.05,151.01,8.82498633]
[1633099904048,18.8353,151.05,151.01,8.82498633]
[1633099904851,2.26,151.05,151.01,8.82498633]
[1633099906954,0.10808364,151.06,151.01,8.82498633]
[1633099907353,0.10808364,151.06,151.02,0.0412976]
[1633099907952,24.2301297,151.09,151.02,0.0412976]
[1633099908357,24.2301297,151.09,151.01,38.79642441]
[1633099908552,2.26,151.09,151.01,38.79642441]
[1633099909754,2.26,151.09,151.01,18.82498633]
[1633099910553,16.90892077,151.08,151.01,18.82498633]
[1633099910754,31.83216196,151.07,151.01,18.82498633]
[1633099911354,49.19297717,151.07,151.01,18.82498633]
[1633099913355,19.62081521,151.07,151.01,18.82498633]
[1633099914358,19.62081521,151.07,151.01,45.49557807]
[1633099914758,2.26,151.07,151.01,45.49557807]
[1633099915157,2.26,151.07,151.02,0.0412976]
[1633099916458,2.26,151.07,151.01,18.82498633]
[1633099921965,27.61812746,151.06,151.01,18.82498633]
[1633099922165,2.26,151.05,151.01,18.82498633]
[1633099924870,8.82498633,151.01,150.91,0.0412976]
[1633099925071,2.26,151.0,150.89,0.0412976]
[1633099925273,2.26,151.0,150.87,0.0412976]
[1633099925671,24.00402084,150.99,150.87,0.0412976]
[1633099925872,2.26,150.98,150.84,0.0412976]
[1633099926074,33.40153984,150.98,150.81,0.0412976]
[1633099926275,19.82085806,150.97,150.81,0.0412976]
[1633099926471,32.01703028,150.96,150.81,0.0412976]
[1633099926870,92.36075806,150.95,150.77,0.0412976]
[1633099927072,18.849,150.94,150.77,0.0412976]
[1633099927271,22.08085806,150.94,150.77,0.0412976]
[1633099927871,25.83045778,150.93,150.77,0.0412976]
[1633099928071,2.26,150.92,150.77,0.0412976]
[1633099931776,2.26,150.92,150.79,24.83791083]
[1633099931975,2.26,150.92,150.8,0.0412976]
[1633099934078,25.88376171,150.92,150.8,0.0412976]
[1633099936682,2.26,150.92,150.8,0.0412976]
[1633099939479,2.26,150.92,150.79,24.83791083]
[1633099948089,20.97980717,150.92,150.79,24.83791083]
[1633099954895,20.97980717,150.92,150.75,3.81120615]
[1633099955097,20.97980717,150.92,150.75,0.0412976]
[1633099955697,20.97980717,150.92,150.75,26.09220827]
[1633099956295,20.97980717,150.92,150.75,26.05091067]
[1633099957699,20.97980717,150.92,150.75,26.09220827]
[1633099959706,488.6706297,150.92,150.75,26.09220827]
[1633099961102,16.5958,150.89,150.75,0.0412976]
[1633099961305,2.26,150.88,150.72,0.0412976]
[1633099961502,110.00835191,150.88,150.72,0.0412976]
[1633099961705,125.17185191,150.87,150.72,0.0412976]
[1633099961902,125.17185191,150.87,150.69,3.75042545]
[1633099961903,38.41,150.86,150.69,3.75042545]
[1633099962102,112.28344722,150.86,150.69,3.75042545]
[1633099962304,112.28344722,150.86,150.67,7.73515843]
[1633099962305,16.6063,150.79,150.67,7.73515843]
[1633099962504,2.26,150.78,150.67,0.0412976]
[1633099962702,20.9581405,150.78,150.64,0.0412976]
[1633099962902,18.6981405,150.77,150.64,0.0412976]
[1633099963101,2.26,150.76,150.61,0.0412976]
[1633099963302,24.99989536,150.76,150.6,25.81524927]
[1633099963501,24.99989536,150.76,150.61,0.0412976]
[1633099963502,18.6981405,150.75,150.61,0.0412976]
[1633099963701,2.26,150.74,150.61,0.0412976]
[1633099963902,2.26,150.74,150.6,25.77395167]
[1633099963903,25.28108747,150.73,150.6,25.77395167]
[1633099964101,2.26,150.72,150.6,25.77395167]
[1633099964304,2.26,150.72,150.61,7.69546095]
[1633099964701,2.26,150.72,150.61,0.0412976]
[1633099965705,2.26,150.72,150.6,25.77395167]
[1633099967102,2.26,150.72,150.61,0.0412976]
[1633099967305,2.26,150.72,150.62,1.91987085]
[1633099967510,2.26,150.72,150.63,25.06941075]
[1633099967705,2.26,150.72,150.63,23.14962383]
[1633099968905,2.26,150.72,150.64,1.91967418]
[1633099969104,2.26,150.75,150.66,1.91939234]
[1633099969307,2.26,150.75,150.66,1.96068994]
[1633099969505,2.26,150.75,150.64,7.69294696]
[1633099969506,2.26,150.75,150.68,1.91918555]
[1633099969905,2.26,150.75,150.69,0.0412976]
[1633099970310,2.26,150.75,150.69,1.95715811]
[1633099970505,2.26,150.75,150.7,29.37602856]
[1633099971304,2.26,150.75,150.69,0.0412976]
[1633099971505,2.26,150.75,150.66,1.91956448]
[1633099971705,2.26,150.75,150.65,0.0412976]
[1633099971904,2.26,150.75,150.63,1.91992325]
[1633099972104,2.26,150.75,150.62,1.96130245]
[1633099972304,2.26,150.75,150.64,24.00177622]
[1633099972711,2.26,150.75,150.65,1.91967286]
[1633099972905,2.26,150.75,150.66,0.0412976]
[1633099973308,27.97780034,150.74,150.66,0.0412976]
[1633099973708,27.97780034,150.74,150.64,24.00178192]
[1633099973709,2.26,150.73,150.64,24.00178192]
[1633099973906,2.26,150.73,150.64,22.08194868]
[1633099976107,2.26,150.73,150.65,1.96107517]
[1633099976313,2.26,150.73,150.66,0.0412976]
[1633099976506,2.26,150.77,150.66,1.96096975]
[1633099976705,2.26,150.77,150.65,16.563]